[Event "Gibraltar Challengers B 2020"]
[Site "Caleta"]
[Date "2020.01.25"]
[Round "1.35"]
[White "Kukic, Boris"]
[Black "Ankitha Goud Palle"]
[Result "0-1"]
[ECO "D02"]
[WhiteElo "2056"]
[BlackElo "1761"]
[Annotator "NA RC"]
[PlyCount "78"]
[EventDate "2020.01.20"]
[EventType "swiss"]
[EventCountry "GGB"]
[SourceTitle "playchess.com"]
[Source "ChessBase"]
[SourceQuality "1"]
[TimeControl "6600+10"]

{[%evp 15,77,-10,6,7,32767,32767,0,32767,32767,-67,-35,32767,32767,32767,50,22,32767,29,32767,0,38,0,36,126,118,32767,50,27,43,32767,-64,-65,-31,-114,-109,32767,-127,32767,-101,-172,-109,-79,0,0,0,0,0,0,32767,32767,32767,32767,101,-1043,-1181,-1422,-2037,-1466,-1660,-1677,-2446,32767,-5414,-2022]} 1. d4 {[%emt 0:00:00]} d5 {[%emt 0:02:19]} 2. Bf4 {[%emt 0:00:23]} Nf6 {[%emt 0:00:17]} 3. e3 {[%emt 0:00:06]} g6 {[%emt 0:00:44]} 4. h3 {[%emt 0:00:30]} Bg7 {[%emt 0:00:16]} 5. Nf3 {[%emt 0:00:05]} O-O {[%emt 0:03:02]} 6. Be2 {[%emt 0:00:12]} b6 {[%emt 0:01:57] D02: 1 d4 d5 2 Nf3 sidelines, including 2...Nf6 3 g3 and 2...Nf6 3 Bf4} (6... c5 7. c3 b6 8. Nbd2 Nc6 9. Qb3 Re8 10. O-O c4 11. Qd1 b5 12. a4 bxa4 13. Qxa4 Bd7 14. Qa6 Qb6 15. Ra2 {1-0 (58) Demchenko,A (2671)-Abdumalik,Z (2464) Teplice 2019}) 7. O-O {[%emt 0:00:13]} Bb7 {[%emt 0:00:12]} 8. Ne5 {[%emt 0:00:26]} Nbd7 {[%emt 0:02:33]} 9. Nd2 {[%emt 0:00:12]} c5 {[%emt 0:04:47]} 10. c3 {[%emt 0:00:12]} Ne8 {[%emt 0:04:41]} 11. Ndf3 {[%emt 0:01:16]} f6 {[%emt 0:04:44]} 12. Ng4 {[%emt 0:01:50]} ({White should try} 12. Nxd7 $11 Qxd7 13. Rc1) 12... g5 $146 {[%emt 0:03:38]} ({Predecessor:} 12... e6 13. Bd3 f5 14. Nge5 c4 15. Bc2 Ndf6 16. Nd2 Nd6 {0-1 (28) Moan,F (1853)-Josse,M (2142) London 2012}) 13. Bxg5 {[%emt 0:00:46]} fxg5 {[%emt 0:02:07]} 14. Nxg5 {[%emt 0:00:06]} Rf5 {[%emt 0:07:18]} (14... Qc8 $11) 15. Ne6 {[%emt 0:01:38]} Qc8 {[%emt 0:00:25]} 16. Bd3 {[%emt 0:00:27]} Rh5 {[%emt 0:01:41] [#]} 17. f4 {[%emt 0:05:05]} (17. Nf4 $1 $16 {[%cal Rf4h5]} Rg5 18. h4 Rxg4 19. Qxg4) 17... Nef6 {[%emt 0:04:20]} 18. f5 {[%emt 0:02:49]} (18. Qf3 $14) 18... Ne4 {[%emt 0:00:57]} 19. Bxe4 {[%emt 0:01:01]} dxe4 {[%emt 0:00:33]} 20. Rf4 {[%emt 0:01:13]} Kh8 {[%emt 0:02:00]} 21. Nxg7 {[%emt 0:00:19]} Kxg7 {[%emt 0:00:23]} 22. Ne5 {[%emt 0:01:15]} Nf6 $1 {[%emt 0:01:59]} 23. Qf1 {[%emt 0:04:58]} Nd5 {[%emt 0:03:28]} 24. Rg4+ {[%emt 0:02:36]} ({White should try} 24. Rf2 $15) 24... Kf8 {[%emt 0:00:58]} 25. Qf2 {[%emt 0:00:30]} Rxf5 {[%emt 0:05:30]} 26. Qh4 {[%emt 0:01:28] [#]} Nf6 $1 {[%emt 0:01:34]} 27. Qh6+ {[%emt 0:05:34]} Ke8 {[%emt 0:00:14]} 28. Rg7 {[%emt 0:02:21] [#]} Qe6 {[%emt 0:06:38]} ({Black should play} 28... cxd4 $1 $17 29. cxd4 Qc2) 29. Rxh7 $1 {[%emt 0:02:23]} Rxe5 $1 {[%emt 0:00:20]} 30. dxe5 {[%emt 0:00:38]} Qxe5 {[%emt 0:00:16]} 31. Qg7 {[%emt 0:00:48]} Qd6 {[%emt 0:06:20]} 32. Rh6 {[%emt 0:01:01]} Kd7 {[%emt 0:03:07]} 33. Rf1 {[%emt 0:00:14]} Rg8 {[%emt 0:05:49]} 34. Qf7 $2 {[%emt 0:00:33] [#]} (34. Qxg8 $14 Nxg8 35. Rxd6+ exd6 36. g4) 34... Qd2 $1 {[%emt 0:06:31]} 35. Rf2 {[%emt 0:00:39]} Qe1+ {[%emt 0:00:38]} 36. Rf1 {[%emt 0:00:23]} Qxe3+ {[%emt 0:00:13]} 37. Kh1 {[%emt 0:01:40]} Qxh6 {[%emt 0:01:31]} 38. Rxf6 {[%emt 0:00:12]} Qxf6 $19 {[%emt 0:00:30]} (38... Qg5 $142 39. Rf2 {[#]} e3 $1 {[%mdl 512]} 40. Qxg8 Qxg8 41. Re2 Qd5 $1 {[%mdl 512]} 42. b4 Qd1+ {[%mdl 64] Double Attack} 43. Kh2 Qxe2 {[%mdl 64] Double Attack} 44. Kg3 Qxg2+ 45. Kf4 e2 46. bxc5 e1=Q {[%mdl 64] Discovered Attack} 47. c6+ Bxc6 48. Kf5 Qee4#) 39. Qxg8 {[%emt 0:00:10]} Qd6 {[%emt 0:02:06]} 0-1

[Event "Gibraltar Challengers B 2020"]
[Site "Caleta"]
[Date "2020.01.25"]
[Round "1.37"]
[White "Karlsson, Jorgen"]
[Black "Lafour, Jephte"]
[Result "1-0"]
[ECO "D00"]
[WhiteElo "2054"]
[BlackElo "1690"]
[Annotator "NA RC"]
[PlyCount "123"]
[EventDate "2020.01.20"]
[EventType "swiss"]
[EventCountry "GGB"]
[SourceTitle "playchess.com"]
[Source "ChessBase"]
[SourceQuality "1"]
[TimeControl "6600+10"]

1. d4 {[%emt 0:00:00]} d5 {[%emt 0:00:01]} 2. Bf4 {[%emt 0:00:00]} Nf6 {[%emt 0:00:26]} 3. e3 {[%emt 0:00:07]} c5 {[%emt 0:01:19]} 4. Nc3 {[%emt 0:00:14]} a6 {[%emt 0:01:16]} 5. dxc5 {[%emt 0:04:44]} Bf5 {[%emt 0:02:39]} (5... Qa5 $11) 6. Bd3 {[%emt 0:03:37]} Bg6 {[%emt 0:05:36]} 7. Nf3 {[%emt 0:06:29]} e6 {[%emt 0:00:57]} 8. b4 {[%emt 0:02:29]} Be7 {[%emt 0:02:28]} 9. Na4 {[%emt 0:05:06]} Nbd7 {[%emt 0:12:54]} 10. c3 {[%emt 0:04:17]} Ne4 {[%emt 0:05:05]} 11. O-O {[%emt 0:05:06]} O-O {[%emt 0:00:47]} 12. Ne5 {[%emt 0:04:18]} Nxe5 {[%emt 0:02:31]} 13. Bxe5 {[%emt 0:00:08]} f6 {[%emt 0:14:19]} 14. Bg3 {[%emt 0:03:06]} Be8 {[%emt 0:13:03]} (14... Nxg3 $16 15. hxg3 (15. fxg3 Bxd3 16. Qxd3 Qe8 $16) 15... f5) 15. Bxe4 {[%emt 0:01:24]} dxe4 {[%emt 0:06:31]} 16. Nb6 {[%emt 0:01:35]} Qxd1 {[%emt 0:09:28]} 17. Rfxd1 {[%emt 0:00:15]} Rd8 {[%emt 0:00:06]} 18. Bc7 {[%emt 0:12:14]} Rd3 {[%emt 0:02:39]} 19. Rxd3 {[%emt 0:04:48]} exd3 {[%emt 0:00:02]} 20. Rd1 {[%emt 0:00:53]} Bg6 {[%emt 0:01:03]} 21. f3 {[%emt 0:01:04]} a5 {[%emt 0:00:08]} 22. Bd6 {[%emt 0:07:54]} axb4 {[%emt 0:04:02]} 23. cxb4 {[%emt 0:00:07]} ({Worse is} 23. Bxe7 bxc3 24. Nc4 (24. Bxf8 $2 c2 $19) 24... Ra8 $17) 23... Re8 {[%emt 0:01:57]} 24. Bxe7 {[%emt 0:00:28]} Rxe7 {[%emt 0:00:16]} 25. e4 {[%emt 0:00:21]} e5 {[%emt 0:00:23]} 26. Rxd3 {[%emt 0:00:17]} f5 {[%emt 0:00:26]} 27. Rd8+ {[%emt 0:00:58]} Kf7 {[%emt 0:00:54]} 28. Nc8 {[%emt 0:03:04]} Rc7 {[%emt 0:00:37]} 29. exf5 {[%emt 0:01:47]} Bxf5 {[%emt 0:01:01]} 30. Nd6+ {[%emt 0:00:20]} Kg6 {[%emt 0:00:19]} 31. Re8 {[%emt 0:04:35]} Kf6 {[%emt 0:00:40]} 32. Rf8+ {[%emt 0:00:07]} Ke6 {[%emt 0:01:40]} 33. Nxf5 {[%emt 0:00:37]} g6 {[%emt 0:00:11]} 34. Ne3 {[%emt 0:01:18]} Rd7 {[%emt 0:00:58]} 35. Re8+ {[%emt 0:00:59]} Kf7 {[%emt 0:01:45]} 36. Rxe5 {[%emt 0:00:26]} Rd2 {[%emt 0:00:10]} 37. a4 {[%emt 0:00:19]} Ra2 {[%emt 0:00:38]} 38. a5 {[%emt 0:00:11]} h5 {[%emt 0:00:34]} 39. h4 {[%emt 0:00:17]} Kf6 {[%emt 0:00:59]} 40. Re4 {[%emt 0:00:26]} Rd2 {[%emt 0:00:12]} 41. Nc4 {[%emt 0:00:14]} Rd1+ {[%emt 0:00:21]} 42. Kf2 {[%emt 0:00:10]} Rb1 {[%emt 0:00:04]} 43. Nd6 {[%emt 0:00:09]} Rb2+ {[%emt 0:00:24]} 44. Kg3 {[%emt 0:00:11]} g5 {[%emt 0:01:00]} 45. hxg5+ {[%emt 0:00:40]} Kxg5 {[%emt 0:00:03]} 46. f4+ {[%emt 0:00:46]} Kf6 {[%emt 0:00:14]} 47. Nxb7 {[%emt 0:00:46]} h4+ $18 {[%emt 0:00:25]} 48. Kh3 {[%emt 0:00:34]} Rb1 {[%emt 0:00:39]} 49. Kxh4 {[%emt 0:00:15]} Rh1+ {[%emt 0:00:11]} 50. Kg4 {[%emt 0:00:10]} Rh7 {[%emt 0:00:51]} 51. Nd6 {[%emt 0:00:09]} Rg7+ {[%emt 0:00:24]} 52. Kf3 {[%emt 0:00:05]} Rg8 {[%emt 0:00:14]} 53. g4 {[%emt 0:00:23]} Rh8 {[%emt 0:00:15]} 54. g5+ {[%emt 0:00:44]} Kg7 {[%emt 0:01:19]} 55. f5 {[%emt 0:00:29]} Rh3+ {[%emt 0:00:13]} 56. Kg4 {[%emt 0:00:14]} Rh1 {[%emt 0:00:50]} 57. Re7+ {[%emt 0:01:14]} Kg8 {[%emt 0:00:13]} 58. f6 {[%emt 0:00:42]} Rf1 {[%emt 0:00:59]} 59. Kh5 {[%emt 0:00:22]} Rg1 {[%emt 0:04:07]} 60. Kg6 {[%emt 0:00:44]} Rxg5+ {[%emt 0:00:26]} 61. Kxg5 {[%emt 0:00:09]} Kf8 {[%emt 0:00:09]} 62. Re8# {[%emt 0:00:07]} 1-0

[Event "Gibraltar Challengers B 2020"]
[Site "Caleta"]
[Date "2020.01.25"]
[Round "1.38"]
[White "Nergard, Ole-Kristian"]
[Black "George, Lolomari Erekosima"]
[Result "1/2-1/2"]
[ECO "B11"]
[WhiteElo "1667"]
[BlackElo "2053"]
[Annotator "NA RC"]
[PlyCount "84"]
[EventDate "2020.01.20"]
[EventType "swiss"]
[EventCountry "GGB"]
[SourceTitle "playchess.com"]
[Source "ChessBase"]
[SourceQuality "1"]
[TimeControl "6600+10"]

{[%evp 9,71,9,3,32767,19,7,75,32767,32767,53,32767,66,32767,42,32767,41,37,41,32,22,52,45,55,32767,108,114,32767,59,88,89,32767,83,102,80,120,80,89,91,88,32767,32767,187,222,32767,32767,32767,32767,195,181,32767,32767,32767,32767,32767,109,32767,32767,32767,32767,32767,32767,-29999,-29992,-29999]} 1. e4 {[%emt 0:00:00]} c6 {[%emt 0:05:12]} 2. Nc3 {[%emt 0:00:29]} d5 {[%emt 0:00:07]} 3. Nf3 {[%emt 0:00:13]} Bg4 {[%emt 0:00:12]} 4. h3 {[%emt 0:00:15]} Bh5 {[%emt 0:00:05]} 5. Be2 {[%emt 0:03:58]} e6 {[%emt 0:03:15]} 6. O-O {[%emt 0:05:39]} Bg6 $146 {[%emt 0:03:29] B11: Caro-Kann: Two Knights Variation} ({Predecessor:} 6... Nf6 7. d3 Be7 8. Bf4 O-O 9. Nd2 Bxe2 10. Qxe2 a5 11. e5 Nfd7 12. Qg4 Kh8 13. a3 b5 14. Nf3 {1-0 (54) Nakamura,H (2760)-Ding,L (2702) Beijing 2012}) 7. d3 {[%emt 0:06:58]} d4 {[%emt 0:00:40]} (7... Nf6 $11 {remains equal.}) 8. Nb1 {[%emt 0:00:28]} c5 {[%emt 0:00:52]} 9. Nbd2 {[%emt 0:00:39]} Nc6 {[%emt 0:00:44]} 10. Nc4 {[%emt 0:02:09]} Bd6 {[%emt 0:02:53]} 11. a4 {[%emt 0:05:00]} Nge7 {[%emt 0:04:39]} 12. Nh4 {[%emt 0:02:56]} Nc8 {[%emt 0:07:24]} 13. Nxg6 {[%emt 0:01:05]} hxg6 {[%emt 0:00:42]} 14. f4 {[%emt 0:03:40]} N8e7 {[%emt 0:00:02]} 15. Qe1 {[%emt 0:02:28]} Qd7 {[%emt 0:00:06]} 16. Bd2 {[%emt 0:00:44]} O-O-O {[%emt 0:01:08]} (16... b6 $14) 17. a5 {[%emt 0:09:16]} Kb8 {[%emt 0:00:32]} 18. Qf2 {[%emt 0:04:21]} Bc7 {[%emt 0:11:06]} 19. Rfb1 {[%emt 0:02:10]} e5 {[%emt 0:04:12]} 20. b4 {[%emt 0:04:12]} cxb4 {[%emt 0:01:05]} 21. Bxb4 {[%emt 0:00:26]} exf4 {[%emt 0:00:02]} 22. Bd2 {[%emt 0:05:29]} (22. Bxe7 $142 Qxe7 23. Rb2) 22... g5 {[%emt 0:13:46]} 23. Rb5 {[%emt 0:09:14]} a6 {[%emt 0:00:05]} 24. Rb2 {[%emt 0:06:43]} Rde8 {[%emt 0:03:13]} 25. Rab1 {[%emt 0:00:57]} (25. Bg4 $142 f5 26. exf5) 25... Nd8 {[%emt 0:00:02]} 26. Bg4 {[%emt 0:07:40]} Qc6 {[%emt 0:06:52]} 27. Qxd4 {[%emt 0:01:23]} Ng6 {[%emt 0:00:01] [#]} 28. Bb4 $2 {[%emt 0:06:38]} (28. Bd7 $1 {[%mdl 512]} Ne7 29. Bxc6 Nexc6 30. Qd7) 28... Ne5 {[%emt 0:01:12]} 29. Bd6 {[%emt 0:04:01]} Nxc4 {[%emt 0:15:19]} 30. Bxc7+ {[%emt 0:00:21]} Kxc7 {[%emt 0:07:55]} 31. dxc4 {[%emt 0:00:18]} Rxe4 {[%emt 0:01:02]} 32. Qxg7 {[%emt 0:01:30]} Qc5+ {[%emt 0:01:05]} 33. Kh2 {[%emt 0:01:38]} Rhe8 {[%emt 0:00:00]} 34. Bf3 {[%emt 0:00:42]} Re1 {[%emt 0:00:20]} 35. Rxb7+ {[%emt 0:02:53]} (35. Rb4 {[%emt 0:02:54]}) 35... Nxb7 {[%emt 0:02:51]} 36. Qxf7+ {[%emt 0:00:12]} R1e7 {[%emt 0:03:56]} (36... Kd8 37. Qf6+ Kc8 38. Bxb7+ Kc7 39. Rxe1 Rxe1 40. Qf7+ Kb8 41. h4) 37. Rxb7+ {[%emt 0:00:44]} Kc8 {[%emt 0:02:15]} 38. Rxe7 {[%emt 0:00:30]} Rxe7 {[%emt 0:00:13]} 39. Qg8+ {[%emt 0:01:11]} Kc7 {[%emt 0:00:20]} 40. Qa8 {[%emt 0:00:18]} Re1 {[%emt 0:05:23]} 41. Qb7+ {[%emt 0:00:47]} Kd8 {[%emt 0:00:05]} 42. Qa8+ {[%emt 0:00:59]} Kc7 {[%emt 0:00:08]} 1/2-1/2

[Event "Gibraltar Challengers B 2020"]
[Site "Caleta"]
[Date "2020.01.25"]
[Round "1.39"]
[White "Martinez Lopez, Jaume"]
[Black "Hng, Mei-Xian Eunice"]
[Result "1-0"]
[ECO "A45"]
[WhiteElo "2042"]
[BlackElo "1661"]
[Annotator "NA RC"]
[PlyCount "71"]
[EventDate "2020.01.20"]
[EventType "swiss"]
[EventCountry "GGB"]
[SourceTitle "playchess.com"]
[Source "ChessBase"]
[SourceQuality "1"]
[TimeControl "6600+10"]

{[%evp 10,71,69,32767,32767,32767,32767,32767,32767,14,32767,-9,32767,31,80,32767,115,109,227,72,32767,27,137,116,124,117,164,70,194,174,32767,76,70,32767,32767,32767,32767,191,191,196,174,40,103,64,32767,329,327,32767,32767,357,32767,487,597,625,32767,32767,29991,1800,32767,32767,32767,32767,32767,29994]} 1. d4 {[%emt 0:00:00]} Nf6 {[%emt 0:00:00]} 2. Bg5 {[%emt 0:00:00]} c5 {[%emt 0:00:13]} 3. d5 {[%emt 0:00:07]} Qb6 {[%emt 0:00:17]} 4. Nc3 {[%emt 0:00:07]} d6 {[%emt 0:00:30]} 5. e4 {[%emt 0:00:38]} Nbd7 {[%emt 0:00:54]} ({Black should play} 5... Qxb2 $11 6. Bd2 Qb6) (5... g6 6. Rb1 Bg7 7. Bb5+ Bd7 8. Bxd7+ Nbxd7 9. Nge2 Qa5 10. O-O b5 11. a3 b4 12. axb4 cxb4 {0-1 (39) Andreikin,D (2719)-Nakamura,H (2746) St Petersburg 2018}) 6. f4 {[%emt 0:03:29] A45: Trompowsky Attack} g6 $146 {[%emt 0:09:17]} ({Predecessor:} 6... a6 7. Rb1 g6 8. Nf3 Ng4 9. Qd2 Qc7 10. a4 Bg7 11. Bc4 O-O 12. O-O Nb6 {1-0 (28) Verrascina,N (2140)-Cutinelli,G Rome 1997}) 7. Rb1 {[%emt 0:12:48]} Bg7 {[%emt 0:09:54]} 8. Nf3 {[%emt 0:01:05]} O-O {[%emt 0:07:42]} 9. Nd2 {[%emt 0:11:47]} a6 {[%emt 0:05:42]} 10. a4 {[%emt 0:00:53]} Re8 {[%emt 0:09:28]} 11. Be2 {[%emt 0:05:31]} Nf8 {[%emt 0:06:36]} 12. Nc4 {[%emt 0:02:19]} Qc7 {[%emt 0:11:12]} (12... Qb4 $11 {remains equal.}) 13. O-O {[%emt 0:04:16]} N8d7 {[%emt 0:02:22] [#]} (13... N6d7 $16 {was necessary.}) 14. Ra1 {[%emt 0:19:39]} (14. e5 $1 $18 {[%mdl 512]}) 14... b6 {[%emt 0:10:13] [#]} 15. Bf3 $2 {[%emt 0:02:09]} (15. e5 $1 $18 {[%mdl 512]}) 15... Bb7 {[%emt 0:01:14]} (15... Rb8 $14) 16. Re1 {[%emt 0:00:25]} h6 {[%emt 0:04:44]} 17. Bh4 {[%emt 0:01:05]} Nh7 {[%emt 0:00:13]} 18. Qd2 {[%emt 0:02:13]} ({White should try} 18. e5 $16) 18... Rad8 {[%emt 0:03:04]} ({Better is} 18... Bd4+ $14 19. Bf2 b5) 19. e5 {[%emt 0:02:45]} f6 {[%emt 0:04:23]} 20. Bg3 $2 {[%emt 0:05:31]} (20. e6 $18 {has better winning chances.}) 20... fxe5 {[%emt 0:02:08]} 21. fxe5 {[%emt 0:00:35]} dxe5 {[%emt 0:02:01]} 22. d6 {[%emt 0:00:42]} Qb8 {[%emt 0:01:29]} 23. dxe7 {[%emt 0:04:14]} Rxe7 {[%emt 0:01:27]} 24. Bxb7 {[%emt 0:00:10]} Qxb7 {[%emt 0:00:28]} 25. Nxe5 {[%emt 0:00:10]} ({Better is} 25. Qd6 $18 Ree8 26. Qxg6) 25... Nhf8 {[%emt 0:01:36]} (25... Ree8 $14 26. Ng4 Bd4+ 27. Bf2 h5) 26. Nc4 {[%emt 0:04:37]} Rde8 {[%emt 0:04:23] [#]} 27. Nd6 $1 {[%emt 0:00:26] Double Attack} Rxe1+ {[%emt 0:00:07]} 28. Bxe1 {[%emt 0:00:05]} Rxe1+ {[%emt 0:02:59]} 29. Rxe1 {[%emt 0:00:05]} Bd4+ {[%emt 0:00:46]} 30. Kh1 {[%emt 0:00:23]} Qc6 {[%emt 0:00:14]} 31. Qf4 {[%emt 0:01:44]} Ne5 {[%emt 0:01:20]} 32. Nce4 {[%emt 0:01:12]} Bxb2 {[%emt 0:01:54]} 33. Rf1 {[%emt 0:00:41]} (33. Nf6+ $142 Kg7 34. Rxe5 Qxd6 {[%mdl 64] Pin} 35. Ne8+ {[%mdl 64] Double Attack} Kg8 36. Nxd6 Bxe5 37. Qxe5 h5 38. Qe7 Kh8 39. Qxf8+ Kh7 40. Ne8 h4 41. Qg7#) 33... Qa8 {[%emt 0:02:22]} 34. Nf6+ {[%emt 0:00:30]} Kg7 {[%emt 0:00:44]} 35. Nfe8+ {[%emt 0:00:08]} Kh7 {[%emt 0:00:16]} 36. Qxf8 {[%emt 0:00:10]} 1-0

[Event "Gibraltar Challengers B 2020"]
[Site "Caleta"]
[Date "2020.01.25"]
[Round "1.40"]
[White "Lee, Alexandre KM"]
[Black "Lung, Liviu-Catalin"]
[Result "0-1"]
[ECO "B06"]
[WhiteElo "1557"]
[BlackElo "2041"]
[Annotator "NA RC"]
[PlyCount "112"]
[EventDate "2020.01.20"]
[EventType "swiss"]
[EventCountry "GGB"]
[SourceTitle "playchess.com"]
[Source "ChessBase"]
[SourceQuality "1"]
[TimeControl "6600+10"]

1. e4 {[%emt 0:00:00]} c6 {[%emt 0:00:53]} 2. d4 {[%emt 0:00:39]} g6 {[%emt 0:00:09]} 3. Nc3 {[%emt 0:01:21]} Bg7 {[%emt 0:00:10]} 4. h3 {[%emt 0:02:56]} d6 {[%emt 0:00:37]} 5. Nf3 {[%emt 0:01:39]} b5 {[%emt 0:00:49]} 6. Bd3 {[%emt 0:03:49]} b4 {[%emt 0:01:26] B06: Modern Defence} (6... Nd7 7. O-O Qc7 8. a4 b4 9. Ne2 Ngf6 10. Ng3 Bb7 11. Be3 c5 12. c3 c4 13. Bb1 bxc3 14. bxc3 O-O {½-½ (64) Perunovic,M (2589)-Novikov,S (2531) Moscow 2019}) 7. Ne2 {[%emt 0:01:31]} Nf6 {[%emt 0:01:18]} 8. Be3 $146 {[%emt 0:01:45]} ({Predecessor:} 8. O-O Nbd7 9. a3 bxa3 10. Rxa3 O-O 11. c4 e5 12. dxe5 dxe5 {1-0 (49) Yuksel,A (2028)-Haman,J (2137) Istanbul 2012}) 8... O-O {[%emt 0:01:15]} 9. Qd2 {[%emt 0:00:59]} Na6 {[%emt 0:04:56]} (9... Nbd7 $14) 10. Ng3 {[%emt 0:04:33]} ({Better is} 10. Bh6 $16) 10... c5 {[%emt 0:02:47]} 11. Bxa6 {[%emt 0:05:12]} cxd4 {[%emt 0:01:33]} 12. Bxd4 {[%emt 0:05:49]} Bxa6 {[%emt 0:00:21]} 13. Qxb4 {[%emt 0:02:11]} Qc7 {[%emt 0:02:56]} 14. Qc3 {[%emt 0:10:06]} Qb7 {[%emt 0:01:00]} 15. Qe3 {[%emt 0:20:29]} Rfc8 {[%emt 0:03:04]} 16. Bc3 {[%emt 0:04:17]} Nd7 {[%emt 0:15:14]} (16... d5 $17 17. e5 {[#]} d4 $1 {[%mdl 512]} 18. Bxd4 (18. Qxd4 Nd5 $17) 18... Nd5) 17. Bxg7 {[%emt 0:14:28]} Kxg7 {[%emt 0:00:26]} 18. O-O-O {[%emt 0:01:55]} Rab8 {[%emt 0:00:58]} 19. b3 {[%emt 0:02:31]} Qc7 $1 {[%emt 0:02:35]} 20. Rd2 {[%emt 0:03:16] [#]} Qa5 $1 {[%emt 0:04:03]} 21. Kb2 {[%emt 0:04:23] [#]} Nb6 $1 {[%emt 0:05:06]} 22. Ka1 $1 {[%emt 0:05:40] [#]} Qa3 {[%emt 0:07:08]} (22... Rc3 $1 $17 {[%cal Rc3e3]} 23. Qd4+ Kg8) 23. c4 {[%emt 0:05:06]} Nd7 {[%emt 0:06:21]} 24. Qc3+ {[%emt 0:01:27]} Kg8 {[%emt 0:00:14]} 25. Qb2 {[%emt 0:01:07]} Qa5 $1 {[%emt 0:00:41]} 26. Rd5 {[%emt 0:00:30]} (26. Qc2 $15) 26... Qb6 {[%emt 0:04:56]} (26... Nc5 $17 27. Nd2 Bb7) 27. Qd4 {[%emt 0:01:14]} ({White should play} 27. Rb1 $11) 27... Nc5 {[%emt 0:00:46]} 28. Nd2 {[%emt 0:01:19]} (28. Rb1 $1 $15) 28... Bb7 {[%emt 0:01:10]} 29. Rg5 {[%emt 0:00:31]} e5 {[%emt 0:01:39]} 30. Qe3 {[%emt 0:00:21]} Ne6 {[%emt 0:09:15]} 31. Qxb6 {[%emt 0:00:33]} axb6 {[%emt 0:00:02]} 32. Rg4 {[%emt 0:00:08]} Kf8 {[%emt 0:00:12]} 33. Ne2 {[%emt 0:00:24]} b5 {[%emt 0:00:34]} 34. cxb5 {[%emt 0:00:24]} Rc2 {[%emt 0:00:07]} 35. Rd1 {[%emt 0:00:19]} d5 {[%emt 0:00:50]} 36. Kb1 {[%emt 0:00:28]} Rc5 {[%emt 0:00:22]} 37. a4 {[%emt 0:00:17]} d4 {[%emt 0:00:31]} 38. Rg3 {[%emt 0:00:40]} f5 {[%emt 0:00:31]} 39. exf5 {[%emt 0:00:20]} gxf5 {[%emt 0:00:07]} 40. Nc4 {[%emt 0:00:11]} f4 {[%emt 0:00:19]} 41. Rg4 {[%emt 0:00:17]} h5 {[%emt 0:00:35]} 42. Rh4 {[%emt 0:00:20]} Ng7 {[%emt 0:04:01]} 43. f3 $18 {[%emt 0:00:21]} Ke7 {[%emt 0:00:29]} 44. Nc1 {[%emt 0:00:21]} Bc8 {[%emt 0:00:55]} 45. Kb2 {[%emt 0:00:15]} Bf5 {[%emt 0:00:23]} 46. Ka3 {[%emt 0:00:16]} Kf6 {[%emt 0:00:06]} 47. Nd6 {[%emt 0:00:37]} Kg5 {[%emt 0:00:36]} 48. g3 {[%emt 0:00:15]} Rc3 {[%emt 0:01:04]} 49. Nf7+ {[%emt 0:00:19]} Kf6 {[%emt 0:00:10]} 50. Nd6 {[%emt 0:00:04]} Bc2 {[%emt 0:02:26]} 51. Rg1 {[%emt 0:00:16]} Ke6 {[%emt 0:06:52]} 52. Ne4 {[%emt 0:00:06]} Bxe4 {[%emt 0:00:52]} 53. fxe4 {[%emt 0:00:01]} f3 {[%emt 0:00:13]} 54. Rf1 {[%emt 0:00:31]} Rf8 {[%emt 0:00:49]} 55. Kb2 {[%emt 0:00:04]} f2 {[%emt 0:00:27]} 56. Ne2 {[%emt 0:00:13]} Re3 {[%emt 0:00:09]} 0-1

[Event "Gibraltar Challengers B 2020"]
[Site "Caleta"]
[Date "2020.01.25"]
[Round "1.42"]
[White "Li, Max J"]
[Black "Hladik, Lumir"]
[Result "0-1"]
[ECO "B13"]
[WhiteElo "2078"]
[BlackElo "2018"]
[Annotator "NA RC"]
[PlyCount "74"]
[EventDate "2020.01.20"]
[EventType "swiss"]
[EventCountry "GGB"]
[SourceTitle "playchess.com"]
[Source "ChessBase"]
[SourceQuality "1"]
[TimeControl "6600+10"]

{[%evp 10,74,43,32767,32767,32767,32767,-13,-8,-5,-13,-24,-25,-17,-20,-16,-20,32767,-37,32767,32767,32767,-79,-73,-74,-124,-123,-157,-146,-207,-245,-322,-333,-333,32767,-394,-362,-521,-309,32767,32767,32767,32767,-136,32767,-205,-203,-219,-212,32767,32767,-222,-252,-234,32767,32767,32767,32767,32767,32767,-430,-469,-492,32767,32767,-497,-602]} 1. e4 {[%emt 0:00:01]} c6 {[%emt 0:00:03]} 2. d4 {[%emt 0:00:09]} d5 {[%emt 0:00:08]} 3. exd5 {[%emt 0:00:46]} cxd5 {[%emt 0:00:11]} 4. Nf3 {[%emt 0:00:50]} Nc6 {[%emt 0:00:46]} 5. Bb5 {[%emt 0:00:20]} a6 {[%emt 0:01:45]} (5... Bg4 6. c4 Nf6 7. Nc3 g6 8. h3 Bxf3 9. Qxf3 a6 10. cxd5 Nxd5 11. Qxd5 axb5 12. Qxb5 Bg7 13. Qxb7 Nxd4 {1-0 (63) Carlsen,M (2872)-Savchenko,B (2577) Moscow 2019}) 6. Ba4 {[%emt 0:01:59] B13: Caro-Kann: Exchange Variation and Panov-Botvinnik Attack} b5 {[%emt 0:01:37]} 7. Bb3 {[%emt 0:00:10]} Bg4 {[%emt 0:01:05]} 8. c3 {[%emt 0:03:38]} Nf6 {[%emt 0:00:52]} 9. h3 {[%emt 0:03:03]} Bh5 {[%emt 0:00:42]} 10. Bf4 {[%emt 0:00:23]} e6 {[%emt 0:00:35]} 11. Nbd2 {[%emt 0:02:39]} Bd6 {[%emt 0:01:40]} 12. Bxd6 {[%emt 0:03:34]} Qxd6 {[%emt 0:00:11]} 13. a4 $146 {[%emt 0:02:15]} ({Predecessor:} 13. O-O) 13... O-O {[%emt 0:01:32]} 14. O-O {[%emt 0:00:46]} b4 {[%emt 0:03:47]} 15. Qc1 {[%emt 0:07:07]} Na5 {[%emt 0:05:38]} 16. Ne5 {[%emt 0:12:16]} Rfc8 {[%emt 0:02:00]} 17. Qc2 {[%emt 0:11:30]} ({White should play} 17. Bc2 $15) 17... Rab8 {[%emt 0:05:47]} 18. Rac1 {[%emt 0:12:06]} Qb6 {[%emt 0:05:22]} 19. c4 {[%emt 0:09:41]} Qxd4 {[%emt 0:00:48]} 20. Ndf3 {[%emt 0:00:38]} (20. Rfe1 {was the only chance.}) 20... Bxf3 {[%emt 0:05:39]} 21. Nxf3 {[%emt 0:00:10]} Qe4 {[%emt 0:01:22]} 22. Nd2 {[%emt 0:03:43]} (22. c5 {might work better.}) 22... Qxc2 {[%emt 0:00:50]} 23. Rxc2 {[%emt 0:00:15]} Nxb3 {[%emt 0:00:23]} 24. Nxb3 {[%emt 0:00:12]} dxc4 {[%emt 0:00:33]} 25. Rfc1 {[%emt 0:00:15]} c3 {[%emt 0:07:38]} 26. bxc3 {[%emt 0:01:49]} h6 {[%emt 0:02:58]} 27. c4 {[%emt 0:01:51]} (27. Nd2 $17) 27... Ne4 {[%emt 0:00:20]} 28. c5 {[%emt 0:00:20]} Nc3 {[%emt 0:00:43]} 29. a5 {[%emt 0:04:16]} Rd8 {[%emt 0:01:02]} 30. Kf1 {[%emt 0:03:42]} Rd5 {[%emt 0:03:57]} 31. Rd2 {[%emt 0:04:48]} Rbd8 {[%emt 0:02:16]} 32. Rxd5 {[%emt 0:02:26]} Rxd5 {[%emt 0:01:46]} 33. f3 {[%emt 0:02:07]} Kf8 {[%emt 0:00:29]} 34. Rc2 {[%emt 0:03:06]} Ke8 {[%emt 0:01:04]} 35. Rd2 {[%emt 0:00:44]} Rxd2 {[%emt 0:00:29]} 36. Nxd2 {[%emt 0:00:07]} Kd7 {[%emt 0:00:15]} 37. Ke1 $19 {[%emt 0:05:31]} Kc6 {[%emt 0:00:57]} 0-1